bitfinex/quotes_BTCUSD_20250127
["timestamp","ask_amount","ask_price","bid_price","bid_amount"]
[1738006223296,0.38101448,99753.0,99752.0,0.00329694]
[1738006223555,0.250371,99753.0,99752.0,0.00329694]
[1738006223820,0.250371,99753.0,99752.0,0.00029694]
[1738006224082,0.153371,99753.0,99752.0,0.00029694]
[1738006225083,0.15438039,99753.0,99752.0,0.00029694]
[1738006225330,0.27572768,99753.0,99752.0,0.00029694]
[1738006225592,0.27171829,99753.0,99752.0,0.00029694]
[1738006226100,0.174371,99753.0,99752.0,0.00029694]
[1738006226379,0.15238039,99753.0,99752.0,0.00029694]
[1738006226709,0.151371,99753.0,99752.0,0.00029694]
[1738006226892,0.15138039,99753.0,99752.0,0.00129694]
[1738006227591,0.152371,99753.0,99752.0,0.00029694]
[1738006227852,0.15538039,99753.0,99752.0,0.00029694]
[1738006228136,0.35072768,99753.0,99752.0,0.00029694]
[1738006228422,0.34771829,99753.0,99752.0,0.00029694]
[1738006228677,0.34871829,99753.0,99752.0,0.00129694]
[1738006229882,0.250371,99753.0,99752.0,0.00129694]
[1738006230133,0.152371,99753.0,99752.0,0.00029694]
[1738006230400,0.004,99753.0,99752.0,0.22714423]
[1738006230636,0.150371,99753.0,99752.0,0.04899694]
[1738006230881,0.151371,99753.0,99752.0,0.00029694]
[1738006231122,0.24972768,99753.0,99752.0,0.00029694]
[1738006231367,0.27071829,99753.0,99752.0,0.00029694]
[1738006231613,0.44051829,99753.0,99752.0,0.00029694]
[1738006231815,0.44051829,99753.0,99752.0,0.00229694]
[1738006232026,0.44051829,99753.0,99752.0,0.00029694]
[1738006232437,0.45081899,99753.0,99752.0,0.00029694]
[1738006232845,0.47045129,99753.0,99752.0,0.00029694]
[1738006233249,0.45165129,99753.0,99752.0,0.00029694]
[1738006233399,0.47145129,99753.0,99752.0,0.00029694]
[1738006233607,0.47045129,99753.0,99752.0,0.00029694]
[1738006233944,0.47445129,99753.0,99752.0,0.00029694]
[1738006235514,0.58179858,99753.0,99752.0,0.00029694]
[1738006236422,0.57179858,99753.0,99752.0,0.00029694]
[1738006236667,0.58179858,99753.0,99752.0,0.00029694]
[1738006236902,0.57179858,99753.0,99752.0,0.00029694]
[1738006237370,0.58179858,99753.0,99752.0,0.00029694]
[1738006237572,0.57179858,99753.0,99752.0,0.00029694]
[1738006238092,0.1646717,99753.0,99752.0,0.00029694]
[1738006238503,0.15538039,99753.0,99752.0,0.00029694]
[1738006238705,0.150381,99746.0,99745.0,0.0463]
[1738006238955,1.64838253,99746.0,99745.0,0.0463]
[1738006239144,1.64634327,99746.0,99745.0,0.0463]
[1738006239408,0.150383,99745.0,99744.0,0.00029736]
[1738006239682,0.15139239,99745.0,99744.0,0.00029736]
[1738006240818,0.001,99745.0,99744.0,0.17694465]
[1738006241167,0.002,99745.0,99744.0,0.17694465]
[1738006241371,1.64838353,99746.0,99744.0,0.17694465]
[1738006241568,1.49800153,99746.0,99745.0,0.09734729]
[1738006241833,1.64838253,99746.0,99745.0,0.09734729]
[1738006242298,1.64838253,99746.0,99744.0,0.07959736]
[1738006242299,1.59534882,99746.0,99744.0,0.00029736]
[1738006242522,0.15139239,99745.0,99744.0,0.00029736]
[1738006242975,0.001,99745.0,99744.0,0.09764465]
[1738006243181,1.49800153,99746.0,99744.0,0.09764465]
[1738006243392,1.49800153,99746.0,99745.0,0.09734729]
[1738006243601,1.49900153,99746.0,99745.0,0.37153029]
[1738006243812,1.49800153,99746.0,99745.0,0.37153029]
[1738006244674,1.49800153,99746.0,99745.0,0.37353029]
[1738006245114,1.49800153,99746.0,99745.0,0.22314729]
[1738006245336,1.49800153,99746.0,99745.0,0.37353029]
[1738006246331,1.49800153,99746.0,99745.0,0.22314729]
[1738006246526,1.49800153,99746.0,99745.0,0.22114729]
[1738006246944,1.64838253,99746.0,99745.0,0.1258]
[1738006247176,1.64838253,99746.0,99745.0,0.1238]
[1738006247642,1.49800153,99746.0,99745.0,0.1258]
[1738006247885,1.64838253,99746.0,99745.0,0.1238]
[1738006248123,1.49800153,99746.0,99745.0,0.1258]
[1738006248379,1.49800153,99746.0,99745.0,0.37353029]
[1738006250361,1.49800153,99746.0,99745.0,0.37373029]
[1738006251059,1.49800153,99746.0,99745.0,0.37173029]
[1738006251498,1.49800153,99746.0,99745.0,0.37473029]
[1738006251720,1.49800153,99746.0,99745.0,0.37502786]
[1738006251964,1.49800153,99746.0,99745.0,0.37202786]
[1738006252468,1.64838253,99746.0,99745.0,0.12409757]
[1738006252715,1.74572982,99746.0,99745.0,0.00029757]
[1738006252909,1.64838253,99746.0,99745.0,0.00029757]
[1738006253206,1.49800153,99746.0,99745.0,0.00029757]
[1738006253478,1.49900153,99746.0,99745.0,0.25302786]
[1738006253717,1.49800153,99746.0,99745.0,0.24802786]
[1738006253947,1.49800153,99746.0,99745.0,0.24902786]
[1738006254128,1.49800153,99746.0,99745.0,0.25202786]
[1738006254251,1.49800153,99746.0,99745.0,0.25102786]
[1738006254686,1.49800153,99746.0,99745.0,0.25202786]
[1738006255841,1.49800153,99746.0,99745.0,0.37672786]
[1738006259478,1.49800153,99746.0,99745.0,0.37652786]
[1738006259678,1.49800153,99746.0,99745.0,0.37672786]
[1738006260701,1.49800153,99746.0,99745.0,0.00429757]
[1738006260702,1.64838253,99746.0,99745.0,0.00429757]
[1738006261665,1.49800153,99746.0,99745.0,0.25202786]
[1738006261814,1.49800153,99746.0,99745.0,0.10064486]
[1738006262419,1.64838253,99746.0,99745.0,0.00329757]
[1738006262864,1.49800153,99746.0,99745.0,0.00029757]
[1738006263036,1.49800153,99746.0,99745.0,0.15068057]
[1738006263382,1.64852423,99746.0,99745.0,0.00429757]
[1738006264016,1.67131646,99746.0,99745.0,0.00429757]
[1738006265090,1.64852423,99746.0,99745.0,0.00429757]
[1738006265722,1.66873159,99746.0,99745.0,0.00429757]
[1738006265932,1.69173159,99746.0,99745.0,0.00429757]
[1738006266145,1.79889589,99746.0,99745.0,0.00429757]
[1738006266356,1.8515486,99746.0,99745.0,0.00429757]
[1738006266568,1.94889589,99746.0,99745.0,0.00429757]
[1738006266915,1.94889589,99746.0,99745.0,0.00129757]
[1738006267123,1.94889589,99746.0,99745.0,0.00029757]
[1738006267354,1.95089589,99746.0,99745.0,0.00029757]
[1738006267569,1.94989589,99746.0,99745.0,0.00029757]
[1738006267977,1.95189589,99746.0,99745.0,0.00029757]
[1738006268794,1.95389589,99746.0,99745.0,0.00029757]
[1738006269601,2.05124318,99746.0,99745.0,0.00029757]
[1738006270194,1.6835486,99746.0,99745.0,0.00029757]
[1738006270365,1.65352423,99746.0,99745.0,0.00029757]
[1738006271145,1.67652423,99746.0,99745.0,0.00029757]
[1738006271369,2.02127152,99746.0,99745.0,0.00029757]
[1738006272129,2.06897152,99746.0,99745.0,0.00029757]
[1738006272351,2.06897152,99746.0,99744.0,0.00029736]
[1738006272352,0.353183,99745.0,99744.0,9.3e-07]
[1738006272659,0.59603029,99745.0,99744.0,9.3e-07]
[1738006273440,0.63213047,99745.0,99744.0,9.3e-07]
[1738006273643,0.74011184,99745.0,99744.0,9.3e-07]
[1738006273845,0.635097,99736.0,99735.0,8e-08]
[1738006274064,2.23044582,99736.0,99735.0,0.00014801]
[1738006274494,2.10064582,99736.0,99735.0,0.00014801]
[1738006274696,1.92139853,99736.0,99735.0,0.00014801]
[1738006274908,1.74839853,99736.0,99735.0,0.00014801]
[1738006275132,1.65039853,99736.0,99735.0,0.00014801]
[1738006275351,1.50000153,99736.0,99735.0,0.15054601]
[1738006275560,1.49800153,99736.0,99735.0,0.3254933]
[1738006275760,1.49800153,99736.0,99735.0,0.3737933]
[1738006275964,1.49900153,99736.0,99735.0,0.3737933]
[1738006276412,1.49900153,99736.0,99735.0,0.27644601]
[1738006276589,1.50100153,99736.0,99735.0,0.27644601]
[1738006276797,1.49900153,99736.0,99735.0,0.27644601]
[1738006277220,1.49800153,99736.0,99735.0,0.27644601]
[1738006277420,1.49800153,99736.0,99735.0,0.12604801]
[1738006277882,1.49800153,99736.0,99735.0,0.3747933]
[1738006278973,1.49800153,99736.0,99735.0,0.5239933]
[1738006279394,1.49800153,99736.0,99735.0,0.5249933]
[1738006279597,1.49800153,99736.0,99735.0,0.5239933]
[1738006279915,1.49800153,99736.0,99735.0,0.5249933]
[1738006280155,0.50269004,99736.0,99735.0,0.5249933]
[1738006280366,0.99531149,99747.0,99745.0,0.300583]
[1738006280574,0.50283174,99746.0,99745.0,0.47583029]
[1738006281942,0.50283174,99746.0,99745.0,0.48586026]
[1738006282148,0.50283174,99746.0,99745.0,0.48786026]
[1738006282330,0.50383174,99746.0,99745.0,0.49586026]
[1738006282531,0.50383174,99746.0,99745.0,0.48586026]
[1738006282957,0.50483174,99746.0,99745.0,0.49486026]
[1738006287140,0.50483174,99746.0,99745.0,0.19427726]
[1738006287400,0.65521274,99746.0,99745.0,0.10634729]
[1738006288009,0.50483174,99746.0,99745.0,0.009]
[1738006288181,0.50483174,99746.0,99745.0,0.159383]
[1738006288386,0.50483174,99746.0,99745.0,0.25673029]
[1738006288631,0.50483174,99746.0,99745.0,0.33693029]
[1738006288823,0.50483174,99746.0,99745.0,0.53463029]
[1738006288971,0.50483174,99746.0,99745.0,1.09703029]
[1738006289598,1.50014323,99746.0,99745.0,1.07403029]
[1738006290030,1.50014323,99746.0,99745.0,1.09703029]
[1738006290448,0.50483174,99746.0,99745.0,1.09703029]
[1738006291622,0.50483174,99746.0,99745.0,0.55563029]
[1738006291829,0.99531149,99760.0,99745.0,0.56563029]
[1738006292045,0.36320641,99750.0,99749.0,0.64778]
[1738006292267,0.21048667,99809.0,99773.0,0.300541]
[1738006292450,0.99531149,99785.0,99773.0,0.54538829]
[1738006292913,0.50269004,99775.0,99773.0,0.54538829]
[1738006293750,0.0011417,99774.0,99773.0,0.56220119]
[1738006293958,0.0011417,99774.0,99773.0,0.55520119]
[1738006294367,7e-07,99774.0,99773.0,1.09460119]
[1738006294579,0.50269004,99797.0,99773.0,1.09460119]
[1738006294580,0.50269004,99797.0,99796.0,0.376506]
[1738006294787,0.50269004,99797.0,99796.0,0.49685329]
[1738006294964,0.50318268,99797.0,99796.0,0.49685329]
[1738006295227,0.00049264,99797.0,99796.0,0.49685329]
[1738006295432,0.00049264,99797.0,99796.0,0.54315329]
[1738006296013,0.00049264,99797.0,99796.0,0.54815329]
[1738006296348,0.00049264,99797.0,99796.0,1.09755329]
[1738006296564,1.49800153,99824.0,99823.0,0.323465]
[1738006296766,1.49800153,99824.0,99823.0,0.50301229]
[1738006296978,1.49814926,99824.0,99823.0,0.50301229]
[1738006297813,1.49814926,99824.0,99823.0,0.39761229]
[1738006298012,1.49814926,99824.0,99823.0,0.24734729]
[1738006298226,1.49814926,99824.0,99823.0,0.39761229]
[1738006298397,1.49814926,99824.0,99823.0,0.24834729]
[1738006298854,1.49814926,99824.0,99823.0,0.39881229]
[1738006299223,1.49814926,99824.0,99823.0,0.40281229]
[1738006299432,1.49814926,99824.0,99823.0,0.41284285]
[1738006300043,1.49814926,99824.0,99823.0,0.11257785]
[1738006300244,1.49814926,99824.0,99823.0,0.26304285]
[1738006300451,1.49829096,99824.0,99823.0,0.11257785]
[1738006302008,1.49829096,99824.0,99823.0,0.26284285]
[1738006302209,1.49829096,99824.0,99823.0,0.28584285]
[1738006302474,1.49829096,99824.0,99823.0,0.43604285]
[1738006303760,2.03651396,99824.0,99823.0,0.43604285]
[1738006304173,2.03651396,99824.0,99823.0,0.41304285]
[1738006305855,2.03651396,99824.0,99823.0,0.41204285]
[1738006306064,2.03651396,99824.0,99823.0,0.40804285]
[1738006306296,2.03651396,99824.0,99823.0,0.41304285]
[1738006306742,2.03651396,99824.0,99823.0,0.25877785]
[1738006306946,2.03651396,99824.0,99823.0,0.41484285]
[1738006307153,2.03651396,99824.0,99823.0,0.26357785]
[1738006307363,2.18677796,99824.0,99823.0,0.10354729]
[1738006307596,2.18677796,99824.0,99823.0,0.10534729]
[1738006307820,2.03651396,99824.0,99823.0,0.25581229]
[1738006308235,2.03651396,99824.0,99823.0,0.24981229]
[1738006308476,2.03651396,99824.0,99823.0,0.25381229]
[1738006308893,2.03651396,99824.0,99823.0,0.24981229]
[1738006309073,2.03651396,99824.0,99823.0,0.10254729]
[1738006309299,2.18677796,99824.0,99823.0,0.005]
[1738006309484,2.18677796,99824.0,99823.0,0.003]
[1738006309930,2.18677796,99824.0,99823.0,0.001]
[1738006310404,0.150274,99818.0,99812.0,0.150281]
[1738006310634,0.15128339,99818.0,99812.0,0.24762829]
[1738006310855,0.15128339,99818.0,99812.0,0.09734729]
[1738006310856,0.150278,99815.0,99812.0,0.09734729]
[1738006311059,0.200366,99817.0,99812.0,0.09734729]
[1738006311060,0.150281,99813.0,99812.0,0.09734729]
[1738006311275,1.64828253,99813.0,99808.0,0.150287]
[1738006311503,1.64828253,99813.0,99809.0,0.09734729]
[1738006311705,1.49800153,99813.0,99812.0,0.300482]
[1738006311917,1.49800153,99813.0,99812.0,0.49772929]
[1738006312122,1.49800153,99813.0,99812.0,0.49972929]
[1738006312330,0.99531149,99813.0,99812.0,0.49772929]
[1738006312764,0.97527449,99813.0,99812.0,1.06775385]
[1738006312974,0.99531149,99840.0,99835.0,0.0002]
[1738006313183,0.99531149,99840.0,99835.0,0.42079429]
[1738006314031,0.99531149,99851.0,99835.0,0.42079429]
[1738006314247,0.99531149,99851.0,99835.0,0.4788614]
[1738006314484,0.99531149,99851.0,99835.0,0.4828614]
[1738006314694,0.99531149,99851.0,99845.0,0.300232]
[1738006314898,0.99531149,99851.0,99845.0,0.42077929]
[1738006315320,0.0001417,99853.0,99845.0,0.49577929]
[1738006316132,0.99545319,99853.0,99845.0,0.49577929]
[1738006316365,0.0001417,99853.0,99845.0,0.49577929]
[1738006316789,0.99545319,99853.0,99845.0,0.49577929]
[1738006316992,0.0001417,99853.0,99852.0,0.323422]
[1738006317201,0.0001417,99853.0,99852.0,0.42076929]
[1738006317406,0.0001417,99853.0,99852.0,0.39776929]
[1738006317612,1.14567319,99853.0,99852.0,0.09734729]
[1738006317820,0.99545319,99853.0,99852.0,0.09734729]
[1738006318002,0.150229,99848.0,99845.0,0.01817508]
[1738006318256,0.50269004,99848.0,99846.0,0.09734729]
[1738006318476,0.150229,99847.0,99846.0,0.09734729]
[1738006318684,0.50269004,99848.0,99846.0,0.09734729]
[1738006318887,0.50269004,99848.0,99846.0,0.24757729]
[1738006319088,0.50269004,99848.0,99846.0,0.09734729]
[1738006319471,0.65291804,99848.0,99846.0,0.09734729]
[1738006319627,0.150229,99847.0,99846.0,0.09734729]
[1738006319828,0.150231,99846.0,99845.0,0.004]
[1738006320053,0.00100939,99846.0,99839.0,0.0002]
[1738006320260,0.00100939,99845.0,99840.0,0.09734729]
[1738006320459,0.50269004,99848.0,99846.0,0.15023]
[1738006320662,0.50269004,99848.0,99847.0,0.24757629]
[1738006321691,0.50269004,99848.0,99847.0,0.42077629]
[1738006322278,0.50269004,99848.0,99847.0,0.42377629]
[1738006322488,0.50269004,99848.0,99847.0,0.42077629]
[1738006322701,0.50269004,99848.0,99847.0,0.43105002]
[1738006322933,0.50269004,99848.0,99847.0,0.41085002]
[1738006323145,0.50269004,99848.0,99847.0,0.39777629]
[1738006323368,0.50269004,99848.0,99847.0,0.24777629]
[1738006323578,0.50269004,99848.0,99847.0,0.25777629]
[1738006323989,0.50269004,99848.0,99847.0,0.10734729]
[1738006324214,0.65291804,99848.0,99847.0,0.10734729]
[1738006324420,0.50269004,99848.0,99847.0,0.25777629]
[1738006324851,0.50283164,99848.0,99847.0,0.24877629]
[1738006325278,0.50283164,99848.0,99847.0,0.42777629]
[1738006325527,0.50283164,99848.0,99847.0,0.47027629]
[1738006325925,0.50283164,99848.0,99847.0,0.47327629]
[1738006326127,0.50283164,99848.0,99847.0,0.47027629]
[1738006326341,0.50283164,99848.0,99847.0,0.49062023]
[1738006326547,0.50283164,99848.0,99847.0,0.49362023]
[1738006326976,0.50283164,99848.0,99847.0,0.49262023]
[1738006327390,0.50283164,99848.0,99847.0,0.49342023]
[1738006327593,0.50283164,99848.0,99847.0,0.49362023]
[1738006327798,0.50283164,99848.0,99847.0,0.49262023]
[1738006328004,0.50283164,99848.0,99847.0,0.48962023]
[1738006328202,0.50283164,99848.0,99847.0,0.50162023]
[1738006328647,0.50283164,99848.0,99847.0,0.48962023]
[1738006328866,0.0001416,99848.0,99847.0,0.52936736]
[1738006329125,0.0001416,99848.0,99847.0,0.53336736]
[1738006329630,0.0001416,99848.0,99847.0,1.07276736]
[1738006329876,0.99545299,99867.0,99866.0,0.323401]
[1738006329877,0.0001415,99867.0,99866.0,0.323401]
[1738006330125,0.0001415,99867.0,99866.0,0.49834829]
[1738006330348,0.0001415,99867.0,99866.0,0.54344829]
[1738006330349,4.8e-07,99867.0,99866.0,0.54344829]
[1738006330573,0.99531149,99932.0,99915.0,0.0002]
[1738006330784,0.50269004,99926.0,99915.0,0.39767429]
[1738006330997,0.00063477,99916.0,99915.0,0.42067429]
[1738006331211,7e-05,99940.0,99939.0,0.300291]
[1738006331627,7e-05,99940.0,99939.0,0.39763829]
[1738006331834,0.00021791,99940.0,99939.0,0.43815004]
[1738006332038,0.00010792,99940.0,99939.0,0.49320709]
[1738006332243,4e-05,99940.0,99939.0,0.45115004]
[1738006332500,4e-05,99940.0,99939.0,0.45096717]
[1738006332735,4e-05,99940.0,99939.0,0.45496717]
[1738006332989,4e-05,99940.0,99939.0,0.45096717]
[1738006333574,0.99531149,99970.0,99947.0,0.323279]
[1738006333781,0.99531149,99970.0,99947.0,0.43062629]
[1738006334398,0.01666667,99955.0,99954.0,0.300269]
[1738006334615,0.01666667,99955.0,99954.0,0.42061629]
[1738006334840,0.01666667,99955.0,99954.0,0.42041629]
[1738006335032,0.01666667,99955.0,99954.0,0.42061629]
[1738006335663,0.50269004,99974.0,99973.0,0.0002]
[1738006335869,0.99531149,99985.0,99984.0,0.300224]
[1738006336083,0.99531149,99985.0,99984.0,0.42057129]
[1738006337289,0.99531149,99985.0,99984.0,0.42106393]
[1738006337490,0.99531149,99985.0,99984.0,0.42306393]
[1738006339161,0.84382503,99985.0,99984.0,0.42906393]
[1738006339402,0.50269004,100060.0,100050.0,0.0002]
[1738006339643,0.50269004,100070.0,100050.0,0.62138021]
[1738006339900,0.65258804,100070.0,100060.0,0.27137921]
[1738006340137,1.15227604,100080.0,100060.0,0.27157921]
[1738006340378,1.05227704,100080.0,100060.0,0.42157921]
[1738006340635,2.5645978,100090.0,100070.0,0.17403192]
[1738006340809,0.15088939,100080.0,100070.0,0.09734729]
[1738006341048,1.74623821,100080.0,100070.0,0.09734729]
[1738006341273,1.74623821,100080.0,100060.0,0.00049264]
[1738006341274,0.149895,100070.0,100060.0,0.00049264]
[1738006341478,1.65789653,100070.0,100060.0,0.00049264]
[1738006341687,1.75524382,100070.0,100060.0,0.00049264]
[1738006341906,0.14997,100020.0,100010.0,0.0002]
[1738006342114,1.34524349,100020.0,100010.0,0.09734729]
[1738006342321,1.34524349,100020.0,100010.0,0.09754729]
[1738006342529,1.84793353,100020.0,100010.0,0.09754729]
[1738006342737,1.84793353,100020.0,100010.0,0.09734729]
[1738006343164,0.149985,100010.0,100000.0,0.00049337]
[1738006343366,1.64899592,100010.0,100000.0,0.09784066]
[1738006343539,1.64798653,100010.0,100000.0,0.09784066]
[1738006343768,1.64798653,100010.0,100000.0,0.00049337]
[1738006343976,1.72368653,100010.0,100000.0,0.00049337]
[1738006344383,1.82103382,100010.0,100000.0,0.00049337]
[1738006344794,0.82572233,100010.0,100000.0,0.00049337]
[1738006345011,1.82103382,100010.0,100000.0,0.00049337]
[1738006345215,1.80123382,100010.0,100000.0,0.00249337]
[1738006345390,1.80123382,100010.0,100000.0,0.00049337]
[1738006346250,1.80323382,100010.0,100000.0,0.00049337]
[1738006346669,1.88033382,100010.0,100000.0,0.00049337]
[1738006346842,2.13883382,100010.0,100000.0,3.7e-07]
[1738006347050,2.01583382,100010.0,100000.0,3.7e-07]
[1738006347257,2.01883382,100010.0,100000.0,3.7e-07]
[1738006347471,2.02883382,100010.0,100000.0,3.7e-07]
[1738006347669,2.01883382,100010.0,100000.0,3.7e-07]
[1738006347903,2.03283382,100010.0,100000.0,3.7e-07]
[1738006348109,1.87498653,100010.0,100000.0,3.7e-07]
[1738006348308,1.89478653,100010.0,100000.0,3.7e-07]
[1738006348569,1.87898653,100010.0,100000.0,3.7e-07]
[1738006348790,1.89878653,100010.0,100000.0,3.7e-07]
[1738006348995,2.00613382,100010.0,100000.0,3.7e-07]
[1738006349169,2.10348111,100010.0,100000.0,3.7e-07]
[1738006349574,2.00613382,100010.0,100000.0,3.7e-07]
[1738006349888,2.00427522,100010.0,100000.0,3.7e-07]
[1738006350056,2.01209544,100010.0,100000.0,3.7e-07]
[1738006350236,2.01309544,100010.0,100000.0,3.7e-07]
[1738006350822,2.01309544,100010.0,99974.0,0.0002]
[1738006350823,0.150029,99981.0,99974.0,0.0002]
[1738006351027,0.00100939,99980.0,99975.0,0.09734729]
[1738006351222,1.64803053,99981.0,99975.0,0.09734729]
[1738006351223,1.49800153,99981.0,99975.0,0.09734729]
[1738006351670,1.49800153,99981.0,99980.0,0.0002]
[1738006351876,1.49800153,99981.0,99974.0,0.00049404]
[1738006352082,0.150037,99975.0,99974.0,0.00049404]
[1738006352253,0.15104639,99975.0,99974.0,0.00049404]
[1738006353505,0.00100939,99975.0,99974.0,0.00049404]
[1738006353711,0.00100939,99976.0,99974.0,0.00049404]
[1738006353868,0.15104639,99975.0,99974.0,0.00049404]
[1738006354262,0.15104639,99975.0,99974.0,0.00249404]
[1738006354487,0.24839368,99975.0,99974.0,0.00249404]
[1738006354697,0.150037,99975.0,99974.0,0.00049404]
[1738006354896,0.15104639,99975.0,99974.0,0.00149404]
[1738006355101,0.15104639,99975.0,99974.0,0.00119403]
[1738006355297,0.27244639,99975.0,99974.0,0.00019403]
[1738006355503,0.421437,99975.0,99974.0,0.00019403]
[1738006355901,0.150066,99956.0,99918.0,0.08812]
[1738006356116,0.150117,99923.0,99918.0,0.08812]
[1738006356333,0.99531149,99923.0,99919.0,0.09734729]
[1738006356510,1.49800153,99923.0,99919.0,0.09734729]
[1738006356716,0.150117,99922.0,99919.0,0.09734729]
[1738006356953,0.20116539,99922.0,99918.0,0.00049514]
[1738006357157,0.150121,99919.0,99918.0,0.00049514]
[1738006357362,0.15113039,99919.0,99918.0,0.00049514]
[1738006357557,0.15113039,99919.0,99918.0,0.00449514]
[1738006357719,0.15113039,99919.0,99918.0,0.00049514]
[1738006357922,0.24847768,99919.0,99918.0,0.00049514]
[1738006358120,0.41726829,99919.0,99918.0,1.4e-07]
[1738006358345,0.43736587,99919.0,99918.0,1.4e-07]
[1738006358754,0.44736587,99919.0,99918.0,1.4e-07]
[1738006358954,0.53890282,99919.0,99918.0,1.4e-07]
[1738006359123,0.401121,99919.0,99918.0,1.4e-07]
[1738006359306,0.49846829,99919.0,99918.0,1.4e-07]
[1738006359725,0.401121,99919.0,99918.0,1.4e-07]
[1738006359980,0.251121,99919.0,99918.0,1.4e-07]
[1738006360183,0.252121,99919.0,99918.0,1.4e-07]
[1738006360393,0.001,99919.0,99918.0,1.4e-07]
[1738006360689,0.00100939,99922.0,99918.0,0.09734743]
[1738006360891,0.003,99919.0,99918.0,0.15012314]
[1738006361093,0.003,99919.0,99918.0,0.09734743]
[1738006361268,1.49800153,99923.0,99918.0,0.09734743]
[1738006361502,1.49800153,99923.0,99922.0,0.150117]
[1738006361704,1.49800153,99923.0,99922.0,0.09734729]
[1738006362228,1.64811653,99923.0,99922.0,0.09734729]
[1738006362432,0.150121,99919.0,99918.0,0.0002975]
[1738006362640,0.15113039,99919.0,99918.0,0.0002975]
[1738006363332,0.25213039,99919.0,99918.0,0.0002975]
[1738006363541,0.251121,99919.0,99918.0,0.0002975]
[1738006363943,0.250121,99919.0,99918.0,0.0012975]
[1738006364994,1.49800153,99923.0,99918.0,0.0012975]
[1738006365213,1.64811753,99923.0,99918.0,0.0012975]
[1738006365421,1.64811753,99923.0,99922.0,0.150117]
[1738006365422,1.49800153,99923.0,99922.0,0.150117]
[1738006365759,1.49800153,99923.0,99922.0,0.24766429]
[1738006366097,0.50269004,99923.0,99922.0,0.39766429]
[1738006366690,0.50369004,99923.0,99922.0,0.39766429]
[1738006366888,0.50369004,99923.0,99922.0,0.40750279]
[1738006367139,0.50269004,99923.0,99922.0,0.41350279]
[1738006367546,0.50269004,99923.0,99922.0,0.41150279]
[1738006367756,0.50269004,99923.0,99922.0,0.42050279]
[1738006368094,0.50269004,99923.0,99922.0,0.40750279]
[1738006369200,0.50269004,99923.0,99922.0,0.39766429]
[1738006370014,0.50269004,99923.0,99922.0,0.41066429]
[1738006370219,0.50269004,99936.0,99935.0,0.150297]
[1738006370385,0.50269004,99943.0,99942.0,0.0002]
[1738006370597,0.50269004,99943.0,99942.0,0.39763429]
[1738006370984,1.49800153,99943.0,99942.0,0.39763429]
[1738006371599,1.49800153,99943.0,99942.0,0.39963429]
[1738006372238,1.49800153,99943.0,99942.0,0.39943429]
[1738006372742,1.49800153,99943.0,99942.0,0.39963429]
[1738006372966,1.49800153,99943.0,99942.0,0.24754729]
[1738006373174,1.64808653,99943.0,99942.0,0.09834729]
[1738006373417,1.64808653,99943.0,99942.0,0.001]
[1738006373809,1.64822823,99943.0,99942.0,0.008]
[1738006374133,0.200118,99941.0,99925.0,0.150311]
[1738006374287,0.150106,99930.0,99926.0,0.09734729]
[1738006374494,0.00100939,99929.0,99926.0,0.09734729]
[1738006374954,1.49800153,99930.0,99926.0,0.09734729]
[1738006375121,1.49800153,99930.0,99922.0,0.00029757]
[1738006375353,0.150108,99928.0,99922.0,0.09764486]
[1738006375675,0.00100939,99929.0,99926.0,0.006]
[1738006376729,0.150108,99928.0,99922.0,0.09764486]
[1738006376922,0.00100939,99929.0,99925.0,0.0002]
[1738006377127,0.00100939,99929.0,99926.0,0.002]
[1738006377329,0.150109,99927.0,99926.0,0.002]
[1738006377764,0.150115,99923.0,99922.0,0.09764486]
[1738006377970,0.150115,99923.0,99922.0,0.00229757]
[1738006378575,0.18345486,99923.0,99922.0,0.00229757]
[1738006379184,0.18345486,99923.0,99922.0,0.00029757]
[1738006380676,0.24847168,99923.0,99922.0,0.00029757]
[1738006380881,0.150115,99923.0,99922.0,0.00029757]
[1738006381104,0.15112439,99923.0,99922.0,0.00029757]
[1738006381306,0.75072,99904.0,99872.0,0.200256]
[1738006381516,0.75072,99904.0,99887.0,0.0002]
[1738006381517,0.00100939,99903.0,99887.0,0.0002]
[1738006381712,0.00100939,99903.0,99882.0,0.0002]
[1738006381914,0.150164,99891.0,99883.0,0.09734729]
[1738006382191,0.00100939,99890.0,99882.0,0.0002]
[1738006382399,1.49800153,99891.0,99890.0,0.150165]
[1738006382604,1.49800153,99891.0,99890.0,0.24771229]
[1738006383020,1.49800153,99891.0,99890.0,0.25221994]
[1738006383199,1.49800153,99891.0,99890.0,0.24771229]
[1738006383444,1.49800153,99891.0,99890.0,0.39771229]
[1738006384200,1.49800153,99891.0,99890.0,0.40471229]
[1738006384602,1.49800153,99891.0,99890.0,0.40642903]
[1738006384807,1.49800153,99891.0,99890.0,0.41342903]
[1738006385392,1.49800153,99891.0,99890.0,0.26342903]
[1738006385594,1.64816453,99891.0,99890.0,0.01371674]
[1738006385798,1.64816453,99891.0,99890.0,0.01571674]
[1738006385799,1.74551182,99891.0,99890.0,0.01571674]
[1738006385979,1.74551182,99891.0,99890.0,0.009]
[1738006386262,0.1,99880.0,99877.0,0.0004952]
[1738006386475,0.150183,99878.0,99877.0,0.0004952]
[1738006386697,1.49800153,99880.0,99877.0,0.0004952]
[1738006386903,1.49800153,99880.0,99879.0,0.150181]
[1738006387105,1.49800153,99880.0,99879.0,0.09734729]
[1738006387339,1.64818153,99880.0,99879.0,0.09734729]
[1738006387542,0.150183,99878.0,99877.0,0.0004952]
[1738006387751,0.15119239,99878.0,99877.0,0.0004952]
[1738006387952,0.15119239,99878.0,99877.0,0.0024952]
[1738006388160,0.15119239,99878.0,99877.0,0.0004952]
[1738006388585,0.24853968,99878.0,99877.0,0.0004952]
[1738006388794,0.34487758,99878.0,99877.0,0.0004952]
[1738006389178,0.150183,99878.0,99877.0,0.0004952]
[1738006390452,1.49800153,99880.0,99879.0,0.150181]
[1738006390678,0.0198,99919.0,99879.0,0.150181]
[1738006390679,0.99531149,99900.0,99880.0,0.15]
[1738006390883,0.99531149,99900.0,99899.0,0.150351]
[1738006391090,0.99531149,99900.0,99899.0,0.24769829]
[1738006391517,0.50269004,99913.0,99912.0,0.150332]
[1738006391721,1.49800153,99913.0,99912.0,0.0002]
[1738006391997,1.64813153,99913.0,99912.0,0.0002]
[1738006392191,1.49800153,99913.0,99912.0,0.150332]
[1738006392363,1.49800153,99913.0,99912.0,0.0002]
[1738006392968,1.49800153,99913.0,99912.0,0.0006952]
[1738006393455,1.64813153,99913.0,99912.0,0.0014952]
[1738006393728,1.84547882,99913.0,99912.0,0.0014952]
[1738006393912,1.74813153,99913.0,99912.0,0.0004952]
[1738006394112,1.74813153,99913.0,99912.0,0.0014952]
[1738006394880,1.64813153,99913.0,99912.0,0.0014952]
[1738006395086,1.49800153,99913.0,99912.0,0.24897449]
[1738006395362,1.64813153,99913.0,99912.0,0.0014952]
[1738006395776,1.49800153,99913.0,99902.0,0.0002]
[1738006395981,1.49800153,99913.0,99912.0,0.24767929]
[1738006397180,1.49800153,99913.0,99912.0,0.25317556]